fUST/lending_fUST_20240402
["ID","MTS","AMOUNT","RATE_DAILY","PERIOD"]
[321226882,1711995040761,-557.00339501,0.00054794,120]
[321226883,1711995040771,-151.0,0.00054794,120]
[321226884,1711995040783,-500.0,0.00054794,120]
[321226885,1711995040792,-500.0,0.00054794,120]
[321226886,1711995040802,-500.0,0.00054794,120]
[321226887,1711995040812,-500.0,0.00054794,120]
[321226888,1711995040822,-500.0,0.00054794,20]
[321226889,1711995040835,-500.0,0.00054794,120]
[321226890,1711995040846,-500.0,0.00054794,120]
[321226891,1711995040855,-500.0,0.00054794,120]
[321226892,1711995040865,-500.0,0.00054794,120]
[321226893,1711995040874,-500.0,0.00054794,120]
[321226894,1711995040885,-627.38135464,0.00054794,120]
[321226895,1711995040894,-500.0,0.00054794,120]
[321226896,1711995040903,-500.0,0.00054794,120]
[321226897,1711995040912,-641.3492396,0.00054794,120]
[321226898,1711995040921,-500.0,0.00054794,120]
[321226899,1711995040969,-500.0,0.00054794,120]
[321226900,1711995040979,-502.10200341,0.00054794,120]
[321226901,1711995040989,-500.0,0.00054794,120]
[321226902,1711995040999,-501.1230738,0.00054794,120]
[321226903,1711995041009,-506.61979046,0.00054794,120]
[321226904,1711995041020,-500.0,0.00054794,120]
[321226905,1711995041029,-836.09,0.00054794,120]
[321226906,1711995041038,-500.0,0.00054794,120]
[321226907,1711995041049,-500.0,0.00054794,120]
[321226908,1711995041059,-708.63,0.00054794,120]
[321226909,1711995041067,-500.0,0.00054794,120]
[321226910,1711995041076,-500.0,0.00054794,120]
[321226911,1711995041085,-500.0,0.00054794,120]
[321226912,1711995041094,-686.97,0.00054794,120]
[321226913,1711995041103,-500.0,0.00054794,120]
[321226914,1711995041112,-500.0,0.00054794,120]
[321226915,1711995041122,-502.24172775,0.00054794,120]
[321226916,1711995041131,-500.0,0.00054794,120]
[321226917,1711995041140,-500.0,0.00054794,120]
[321226918,1711995041149,-598.6,0.00054794,120]
[321226919,1711995041158,-500.0,0.00054794,120]
[321226920,1711995041167,-747.0,0.00054794,120]
[321226921,1711995041176,-344.28363018,0.00054794,120]
[321226922,1711995041200,-155.71636982,0.00054794,120]
[321226923,1711995041210,-132.49884431,0.00054794,120]
[321226924,1711995041222,-367.50115569,0.00054794,120]
[321226925,1711995041232,-123.98884436,0.00054794,120]
[321226926,1711995041266,-2916.76115564,0.00054794,120]
[321226927,1711995041276,-402.14924472,0.00054794,120]
[321226928,1711995041285,-500.0,0.00054794,120]
[321226929,1711995041294,-853.07,0.00054794,120]
[321226930,1711995041303,-500.0,0.00054794,120]
[321226931,1711995041312,-168.75622133,0.00054794,120]
[321227649,1711995065147,155.0,0.00030512,4]
[321227651,1711995613325,275.342036,0.00035603,2]
[321227652,1711995669042,189.6152215,0.00035518,2]
[321227657,1711995913457,153.78054964,0.00035908,2]
[321227658,1711995925357,154.9690062,0.00035999,4]
[321227659,1711995941229,1239.699672,0.00035999,4]
[321227660,1711995941439,1991.01971806,0.00035999,4]
[321227661,1711995945579,154.9690062,0.00035999,4]
[321227662,1711995945891,378.41201764,0.00035999,4]
[321227663,1711995946449,831.98383533,0.00035999,4]
[321227664,1711995946489,517.37331434,0.00033899,2]
[321227665,1711995947957,154.9690062,0.00035999,4]
[321227666,1711995950700,636.9490118,0.00035739,2]
[321227667,1711995952095,287.96546735,0.00035999,4]
[321227668,1711995954388,1752.30342879,0.00035999,4]
[321227669,1711995955227,667.41417189,0.00035999,4]
[321227670,1711995957256,501.52013935,0.00034202,4]
[321227671,1711995957568,4637.09209755,0.00035999,4]
[321227672,1711995962716,154.9690062,0.00035999,4]
[321227673,1711995964130,854.52847783,0.00035999,4]
[321227674,1711995987674,5169.423631,0.00035739,120]
[321227680,1711996015955,1991.01971806,0.00035999,4]
[321227681,1711996018521,154.93802479,0.00035999,4]
[321227707,1711996027785,667.41417189,0.00035999,4]
[321227708,1711996046566,854.52847783,0.00035999,4]
[321227709,1711996058873,502.5718756,0.00035738,2]
[321227710,1711996071576,24900.0,0.00035738,2]
[321227711,1711996080740,400.0,0.00035999,2]
[321227712,1711996081406,400.0,0.00035999,2]
[321227713,1711996094252,667.41417189,0.00035999,4]
[321227715,1711996140741,400.0,0.00035999,2]
[321227716,1711996141309,400.0,0.00035999,2]
[321227717,1711996184506,176.92545996,0.00035924,7]
[321227718,1711996220189,200.0,0.00035554,2]
[321227745,1711996232470,-845.56981823,0.00036,4]
[321227746,1711996232480,-21.88333147,0.00036,4]
[321227747,1711996232532,-133.05469332,0.00036,4]
[321227748,1711996232542,-400.0,0.00036001,2]
[321227749,1711996232551,-400.0,0.00036001,2]
[321227750,1711996232561,-400.0,0.00036001,3]
[321227751,1711996232571,-6915.32215473,0.00036001,4]
[321227753,1711996232580,-396.39215654,0.00036002,2]
[321227755,1711996232590,-157.66964239,0.00036002,4]
[321227757,1711996232599,-188.41823067,0.00036002,4]
[321227758,1711996232609,-194.70753417,0.00036002,4]
[321227759,1711996232617,-236.02083745,0.00036002,4]
[321227760,1711996232626,-740.49376224,0.00036002,4]
[321227761,1711996232646,-950.52578889,0.00036002,4]
[321227762,1711996232660,-3317.63458008,0.00036002,4]
[321227763,1711996232669,-165.35876632,0.00036002,4]
[321227764,1711996232678,-155.04804475,0.00036002,4]
[321227765,1711996232688,-421.28291942,0.00036002,4]
[321227766,1711996232698,-508.27386137,0.00036003,4]
[321227767,1711996232707,-242.0,0.00036004,2]
[321227768,1711996232717,-1723.37177392,0.00036004,4]
[321227780,1711996238979,-11699.29757179,0.00036004,4]
[321227781,1711996238989,-168.468059,0.00036024,2]
[321227782,1711996238998,-170.148235,0.00036141,2]
[321227783,1711996239010,-155.00464914,0.00036337,4]
[321227784,1711996239020,-155.00310006,0.00037222,4]
[321227785,1711996239030,-379.754361,0.00037222,4]
[321227786,1711996239040,-361.37185206,0.00037982,4]
[321227787,1711996239050,-195.04648628,0.00037982,2]
[321227788,1711996239157,-212.45039143,0.00037983,4]
[321227789,1711996239167,-5070.74684734,0.00037983,4]
[321227790,1711996239176,-560.0,0.00038561,3]
[321227791,1711996239186,-560.0,0.00038561,5]
[321227792,1711996239196,-517.37331434,0.00038899,2]
[321227793,1711996239206,-153.78054962,0.00039414,2]
[321227794,1711996239215,-640.0,0.00039601,3]
[321227795,1711996239224,-166.745222,0.0004,2]
[321227796,1711996239233,-166.666666,0.00041096,2]
[321227797,1711996239242,-198.0801215,0.00041267,15]
[321227798,1711996239251,-783.0,0.00041303,3]
[321227799,1711996239260,-783.0,0.00041303,5]
[321227800,1711996239269,-5169.423631,0.00041696,120]
[321227801,1711996239279,-166.666666,0.00042058,2]
[321227802,1711996239288,-250.0,0.00042289,7]
[321227803,1711996239297,-5699.04167804,0.00042289,30]
[321227804,1711996239310,-61285.20957996,0.00042289,30]
[321227805,1711996239319,-153.78054962,0.00042919,2]
[321227806,1711996239329,-166.666666,0.00043019,2]
[321227807,1711996239338,-326.0,0.00043562,3]
[321227808,1711996239351,-166.666666,0.00043981,2]
[321227809,1711996239360,-1097.0,0.0004424,3]
[321227810,1711996239370,-1097.0,0.0004424,5]
[321227811,1711996239379,-166.666666,0.00044942,2]
[321227812,1711996239388,-8676.15065072,0.00045,120]
[321227813,1711996239397,-166.666666,0.00045904,2]
[321227814,1711996239407,-1536.0,0.00047386,3]
[321227815,1711996239415,-1049.0,0.00047386,5]
[321227816,1711996239425,-5169.423631,0.00047653,120]
[321227817,1711996239434,-1123.17726517,0.00049,120]
[321227818,1711996239443,-28577.3221609,0.00049315,120]
[321227819,1711996239452,-641.25261039,0.00049868,4]
[321227820,1711996239461,-1085.90219555,0.0004987,4]
[321227821,1711996239470,-8499.84054553,0.0005,120]
[321227822,1711996239479,-195.0,0.0005,120]
[321227823,1711996239488,-2151.0,0.00050756,10]
[321227824,1711996239497,-155.00465114,0.00052693,4]
[321227825,1711996239506,-1000.0,0.00053,5]
[321227826,1711996239515,-8539.26366607,0.00053286,4]
[321227827,1711996239524,-275.342036,0.00053405,2]
[321227828,1711996239533,-5169.423631,0.00053609,120]
[321227829,1711996239542,-154.59483799,0.00054246,3]
[321227830,1711996239553,-150.93962415,0.00054256,2]
[321227831,1711996239562,-3011.0,0.00054365,10]
[321227832,1711996239571,-2385.97896017,0.00054594,120]
[321227833,1711996239581,-150.0,0.000547,95]
[321227834,1711996239590,-12882.09597915,0.00054736,61]
[321227835,1711996239600,-3945.7303599,0.00054736,30]
[321227836,1711996239609,-155.56089784,0.00054737,4]
[321227837,1711996239619,-155.69105699,0.00054737,4]
[321227838,1711996239628,-3037.57152052,0.00054738,120]
[321227839,1711996239637,-13258.98620584,0.00054739,15]
[321227840,1711996239647,-1004.56025567,0.00054792,11]
[321227841,1711996239656,-429.6206382,0.00054793,4]
[321227842,1711996239665,-155.0,0.00054793,4]
[321227843,1711996239674,-1000.0,0.00054793,120]
[321227844,1711996239684,-397.02972107,0.00054794,120]
[321227845,1711996239693,-11553.82820128,0.00054794,120]
[321227846,1711996239702,-500.0,0.00054794,120]
[321227847,1711996239711,-500.0,0.00054794,120]
[321227848,1711996239719,-500.0,0.00054794,120]
[321227849,1711996239729,-500.0,0.00054794,120]
[321227850,1711996239738,-543.78317584,0.00054794,120]
[321227851,1711996239747,-500.0,0.00054794,120]
[321227852,1711996239756,-506.33259802,0.00054794,120]
[321227853,1711996239765,-185.12002188,0.00054794,120]
[321227854,1711996239774,-500.0,0.00054794,120]
[321227855,1711996239783,-500.0,0.00054794,120]
[321227856,1711996239792,-500.0,0.00054794,120]
[321227857,1711996239802,-500.0,0.00054794,120]
[321227858,1711996239811,-463.485095,0.00054794,120]
[321227859,1711996239820,-500.0,0.00054794,120]
[321227860,1711996239829,-500.0,0.00054794,120]
[321227861,1711996239838,-500.0,0.00054794,120]
[321227862,1711996239849,-500.0,0.00054794,120]
[321227863,1711996239858,-500.0,0.00054794,120]
[321227864,1711996239867,-500.0,0.00054794,120]
[321227865,1711996239876,-500.0,0.00054794,120]
[321227866,1711996239886,-500.0,0.00054794,120]
[321227867,1711996239895,-500.0,0.00054794,120]
[321227868,1711996239905,-500.0,0.00054794,120]
[321227869,1711996239914,-151.0,0.00054794,120]
[321227870,1711996239923,-500.0,0.00054794,120]
[321227871,1711996239932,-500.0,0.00054794,120]
[321227872,1711996239942,-679.11,0.00054794,120]
[321227873,1711996239951,-500.0,0.00054794,120]
[321227874,1711996239963,-500.0,0.00054794,120]
[321227875,1711996239972,-500.0,0.00054794,120]
[321227876,1711996239981,-500.0,0.00054794,120]
[321227878,1711996239990,-500.0,0.00054794,120]
[321227880,1711996239999,-573.66,0.00054794,120]
[321227882,1711996240010,-500.0,0.00054794,120]
[321227884,1711996240019,-500.0,0.00054794,120]
[321227886,1711996240028,-500.0,0.00054794,120]
[321227888,1711996240040,-500.0,0.00054794,120]
[321227890,1711996240049,-500.0,0.00054794,120]
[321227892,1711996240058,-500.0,0.00054794,120]
[321227894,1711996240067,-500.0,0.00054794,120]
[321227896,1711996240078,-500.0,0.00054794,120]
[321227898,1711996240087,-500.0,0.00054794,120]
[321227900,1711996240098,-506.60491626,0.00054794,120]
[321227902,1711996240107,-500.0,0.00054794,120]
[321227904,1711996240116,-500.0,0.00054794,120]
[321227906,1711996240126,-500.0,0.00054794,120]
[321227908,1711996240135,-500.0,0.00054794,120]
[321227910,1711996240144,-500.0,0.00054794,120]
[321227912,1711996240153,-500.0,0.00054794,120]
[321227914,1711996240162,-500.0,0.00054794,120]
[321227916,1711996240172,-500.0,0.00054794,120]
[321227918,1711996240181,-500.0,0.00054794,120]
[321227920,1711996240190,-500.0,0.00054794,120]
[321227922,1711996240199,-500.0,0.00054794,120]
[321227924,1711996240208,-612.64,0.00054794,120]
[321227926,1711996240217,-500.0,0.00054794,120]
[321227928,1711996240226,-502.66295237,0.00054794,120]
[321227930,1711996240235,-500.0,0.00054794,120]
[321227932,1711996240245,-500.0,0.00054794,120]
[321227934,1711996240253,-500.0,0.00054794,120]
[321227935,1711996240263,-500.0,0.00054794,120]
[321227937,1711996240272,-500.0,0.00054794,20]
[321227939,1711996240281,-500.0,0.00054794,120]
[321227941,1711996240291,-500.0,0.00054794,120]
[321227943,1711996240300,-500.0,0.00054794,120]
[321227945,1711996240309,-500.0,0.00054794,120]
[321227947,1711996240318,-500.0,0.00054794,120]
[321227949,1711996240328,-509.37880067,0.00054794,120]
[321227952,1711996240337,-842.92,0.00054794,120]
[321227955,1711996240347,-500.0,0.00054794,120]
[321227958,1711996240356,-500.0,0.00054794,120]
[321227961,1711996240366,-505.21900292,0.00054794,120]
[321227964,1711996240375,-502.56350408,0.00054794,120]
[321227967,1711996240385,-497.40825469,0.00054794,120]
[321227970,1711996240394,-500.0,0.00054794,120]
[321227973,1711996240403,-507.04785013,0.00054794,120]
[321227975,1711996240412,-500.0,0.00054794,120]
[321227978,1711996240422,-6573.58,0.00054794,120]
[321227981,1711996240431,-500.0,0.00054794,120]
[321227984,1711996240440,-500.0,0.00054794,120]
[321227987,1711996240449,-3014.01,0.00054794,120]
[321227990,1711996240457,-500.6391195,0.00054794,120]
[321227993,1711996240467,-151.0,0.00054794,7]
[321227996,1711996240477,-500.0,0.00054794,120]
[321227999,1711996240486,-500.0,0.00054794,120]
[321228002,1711996240496,-817.53,0.00054794,120]
[321228005,1711996240505,-500.0,0.00054794,120]
[321228008,1711996240514,-500.0,0.00054794,120]
[321228011,1711996240523,-558.48,0.00054794,120]
[321228014,1711996240532,-500.0,0.00054794,120]
[321228017,1711996240542,-500.0,0.00054794,120]
[321228020,1711996240551,-500.0,0.00054794,120]
[321228023,1711996240560,-500.0,0.00054794,120]
[321228026,1711996240570,-603.95,0.00054794,120]
[321228029,1711996240579,-500.0,0.00054794,120]
[321228032,1711996240588,-522.80838345,0.00054794,120]
[321228035,1711996240600,-500.0,0.00054794,120]
[321228038,1711996240608,-9223.15,0.00054794,90]
[321228041,1711996240618,-500.0,0.00054794,120]
[321228043,1711996240626,-2122.52,0.00054794,21]
[321228046,1711996240635,-569.7600255,0.00054794,120]
[321228049,1711996240644,-500.0,0.00054794,60]
[321228052,1711996240653,-645.25839185,0.00054794,120]
[321228055,1711996240662,-506.00499671,0.00054794,120]
[321228057,1711996240671,-500.0,0.00054794,120]
[321228060,1711996240680,-559.68,0.00054794,120]
[321228064,1711996240689,-165.49760333,0.00054794,120]
[321228067,1711996240698,-500.0,0.00054794,120]
[321228069,1711996240707,-1953.25,0.00054794,120]
[321228072,1711996240716,-1439.55800001,0.00054794,120]
[321228075,1711996240725,-2796.47,0.00054794,120]
[321228078,1711996240735,-500.0,0.00054794,120]
[321228081,1711996240744,-500.0,0.00054794,120]
[321228084,1711996240753,-2070.72,0.00054794,120]
[321228087,1711996240762,-500.0,0.00054794,120]
[321228090,1711996240772,-500.0,0.00054794,120]
[321228093,1711996240781,-500.0,0.00054794,2]
[321228096,1711996240790,-500.0,0.00054794,120]
[321228099,1711996240799,-671.87,0.00054794,120]
[321228102,1711996240808,-506.68067396,0.00054794,120]
[321228105,1711996240817,-484.26447586,0.00054794,120]
[321228108,1711996240826,-500.0,0.00054794,120]
[321228110,1711996240835,-500.0,0.00054794,120]
[321228112,1711996240846,-1118.37,0.00054794,120]
[321228114,1711996240856,-793.46,0.00054794,120]
[321228117,1711996240865,-1000.0,0.00054794,7]
[321228119,1711996240874,-720.85,0.00054794,120]
[321228122,1711996240883,-500.0,0.00054794,120]
[321228125,1711996240893,-487.3421978,0.00054794,120]
[321228128,1711996240902,-500.0,0.00054794,120]
[321228131,1711996240911,-715.87,0.00054794,120]
[321228150,1711996240989,-500.0,0.00054794,120]
[321228153,1711996240998,-500.0,0.00054794,120]
[321228156,1711996241008,-408.97268156,0.00054795,120]
[321228159,1711996241018,-500.0,0.0005489,120]
[321228162,1711996241027,-500.0,0.0005489,120]
[321228165,1711996241039,-500.0,0.0005489,120]
[321228168,1711996241048,-500.0,0.0005489,120]
[321228171,1711996241058,-500.0,0.0005489,120]
[321228174,1711996241067,-500.0,0.0005489,120]
[321228177,1711996241078,-500.0,0.0005489,120]
[321228180,1711996241087,-500.0,0.0005489,120]
[321228182,1711996241096,-215.41,0.0005489,120]
[321228185,1711996241106,-882.0,0.000549,30]
[321228188,1711996241115,-30674.03537414,0.00055,30]
[321228191,1711996241124,-151.0,0.00055,120]
[321228193,1711996241134,-155.352931,0.00055,120]
[321228195,1711996241143,-155.352931,0.00055,120]
[321228196,1711996241153,-151.0,0.00055,120]
[321228198,1711996241162,-2746.861831,0.00055,96]
[321228200,1711996241171,-151.0,0.00055,120]
[321228202,1711996241181,-151.0,0.00055,10]
[321228204,1711996241190,-151.0,0.00055,10]
[321228206,1711996241199,-150.0,0.00055067,60]
[321228208,1711996241208,-500.0,0.00055068,120]
[321228210,1711996241217,-500.0,0.00055068,120]
[321228212,1711996241227,-500.0,0.00055068,120]
[321228214,1711996241236,-500.0,0.00055068,120]
[321228216,1711996241245,-500.0,0.00055068,120]
[321228218,1711996241254,-591.34710333,0.00055068,120]
[321228220,1711996241264,-679.11,0.00055068,120]
[321228222,1711996241275,-500.0,0.00055068,120]
[321228224,1711996241285,-500.0,0.00055068,120]
[321228226,1711996241294,-151.0,0.00055068,120]
[321228228,1711996241303,-500.0,0.00055068,120]
[321228230,1711996241312,-573.66,0.00055068,120]
[321228232,1711996241321,-500.0,0.00055068,120]
[321228234,1711996241331,-155.352931,0.00055068,120]
[321228236,1711996241340,-155.352931,0.00055068,120]
[321228239,1711996241351,-500.0,0.00055068,120]
[321228240,1711996241360,-500.0,0.00055068,120]
[321228242,1711996241369,-500.0,0.00055068,120]
[321228244,1711996241378,-500.0,0.00055068,120]
[321228246,1711996241387,-226.82476721,0.00055068,120]
[321228247,1711996241396,-151.0,0.00055068,120]
[321228248,1711996241405,-525.10382676,0.00055068,120]
[321228249,1711996241415,-151.0,0.00055068,120]
[321228250,1711996241424,-500.0,0.00055068,120]
[321228251,1711996241433,-500.0,0.00055068,120]
[321228252,1711996241442,-500.0,0.00055068,120]
[321228253,1711996241451,-612.64,0.00055068,120]
[321228254,1711996241459,-500.0,0.00055068,120]
[321228255,1711996241469,-168.60282651,0.00055068,120]
[321228256,1711996241478,-500.0,0.00055068,120]
[321228257,1711996241487,-500.0,0.00055068,120]
[321228258,1711996241497,-500.0,0.00055068,120]
[321228259,1711996241506,-509.91172716,0.00055068,120]
[321228260,1711996241517,-842.92,0.00055068,120]
[321228261,1711996241526,-593.35285033,0.00055068,120]
[321228262,1711996241535,-580.98684277,0.00055068,120]
[321228263,1711996241545,-6573.58,0.00055068,120]
[321228264,1711996241554,-500.0,0.00055068,120]
[321228265,1711996241563,-3014.01,0.00055068,120]
[321228266,1711996241573,-151.0,0.00055068,120]
[321228267,1711996241582,-331.24377867,0.00055068,120]
[321228268,1711996241593,-500.0,0.00055068,120]
[321228269,1711996241602,-817.53,0.00055068,120]
[321228270,1711996241611,-509.01118302,0.00055068,120]
[321228271,1711996241621,-500.0,0.00055068,120]
[321228272,1711996241630,-558.48,0.00055068,120]
[321228273,1711996241640,-500.0,0.00055068,120]
[321228274,1711996241649,-500.0,0.00055068,120]
[321228275,1711996241659,-500.0,0.00055068,120]
[321228276,1711996241668,-603.95,0.00055068,120]
[321228277,1711996241677,-470.50010041,0.00055068,120]
[321228278,1711996241687,-500.0,0.00055068,120]
[321228279,1711996241696,-9223.15,0.00055068,90]
[321228280,1711996241706,-500.0,0.00055068,120]
[321228281,1711996241715,-2122.52,0.00055068,21]
[321228282,1711996241726,-500.0,0.00055068,60]
[321228283,1711996241735,-500.0,0.00055068,120]
[321228284,1711996241745,-559.68,0.00055068,120]
[321228285,1711996241754,-500.0,0.00055068,120]
[321228286,1711996241764,-1953.25,0.00055068,120]
[321228287,1711996241773,-151.0,0.00055068,10]
[321228288,1711996241782,-282.0982,0.00055068,10]
[321228289,1711996241791,-2796.47,0.00055068,120]
[321228290,1711996241800,-500.0,0.00055068,120]
[321228291,1711996241809,-500.0,0.00055068,120]
[321228292,1711996241819,-2070.72,0.00055068,120]
[321228293,1711996241829,-500.0,0.00055068,120]
[321228294,1711996241838,-500.0,0.00055068,2]
[321228295,1711996241849,-500.0,0.00055068,120]
[321228296,1711996241859,-151.0,0.00055068,120]
[321228297,1711996241868,-671.87,0.00055068,120]
[321228298,1711996241878,-500.0,0.00055068,120]
[321228299,1711996241888,-500.0,0.00055068,120]
[321228300,1711996241897,-1118.37,0.00055068,120]
[321228301,1711996241907,-793.46,0.00055068,120]
[321228302,1711996241916,-1000.0,0.00055068,7]
[321228303,1711996241925,-720.85,0.00055068,120]
[321228304,1711996241935,-500.0,0.00055068,120]
[321228305,1711996241944,-373.58992799,0.00055068,120]
[321228306,1711996241953,-715.87,0.00055068,120]
[321228307,1711996241962,-500.0,0.00055068,120]
[321228308,1711996241971,-500.0,0.00055068,120]
[321228309,1711996241980,-956.05947146,0.0005534,4]
[321228310,1711996241989,-151.0,0.0005534,120]
[321228311,1711996241999,-208.2060555,0.00055341,2]
[321228312,1711996242011,-500.0,0.00055342,120]
[321228313,1711996242021,-500.0,0.00055342,120]
[321228314,1711996242030,-500.0,0.00055342,120]
[321228315,1711996242043,-500.0,0.00055342,120]
[321228316,1711996242053,-679.11,0.00055342,120]
[321228317,1711996242062,-500.0,0.00055342,120]
[321228318,1711996242071,-500.0,0.00055342,34]
[321228319,1711996242081,-500.0,0.00055342,120]
[321228320,1711996242090,-151.0,0.00055342,120]
[321228321,1711996242101,-500.0,0.00055342,120]
[321228322,1711996242111,-573.66,0.00055342,120]
[321228323,1711996242120,-500.0,0.00055342,120]
[321228324,1711996242129,-155.352931,0.00055342,120]
[321228325,1711996242139,-155.352931,0.00055342,120]
[321228326,1711996242148,-251.6870418,0.00055342,120]
[321228327,1711996242157,-500.0,0.00055342,120]
[321228328,1711996242166,-500.0,0.00055342,120]
[321228329,1711996242176,-151.0,0.00055342,120]
[321228330,1711996242185,-500.0,0.00055342,120]
[321228331,1711996242195,-500.0,0.00055342,120]
[321228332,1711996242205,-500.0,0.00055342,120]
[321228333,1711996242215,-612.64,0.00055342,120]
[321228334,1711996242225,-500.0,0.00055342,120]
[321228335,1711996242235,-500.0,0.00055342,120]
[321228336,1711996242244,-500.0,0.00055342,120]
[321228337,1711996242254,-500.0,0.00055342,120]
[321228338,1711996242264,-842.92,0.00055342,120]
[321228339,1711996242273,-6573.58,0.00055342,120]
[321228340,1711996242282,-206.64023046,0.00055342,120]
[321228341,1711996242292,-3014.01,0.00055342,120]
[321228342,1711996242301,-500.0,0.00055342,120]
[321228343,1711996242311,-817.53,0.00055342,120]
[321228344,1711996242320,-558.48,0.00055342,120]
[321228345,1711996242329,-500.0,0.00055342,120]
[321228346,1711996242338,-500.0,0.00055342,120]
[321228347,1711996242350,-500.0,0.00055342,120]
[321228348,1711996242359,-603.95,0.00055342,120]
[321228349,1711996242368,-500.0,0.00055342,120]
[321228350,1711996242377,-9223.15,0.00055342,90]
[321228351,1711996242386,-500.0,0.00055342,120]
[321228352,1711996242396,-2122.52,0.00055342,21]
[321228353,1711996242405,-500.0,0.00055342,60]
[321228354,1711996242415,-500.0,0.00055342,120]
[321228355,1711996242424,-559.68,0.00055342,120]
[321228356,1711996242433,-500.0,0.00055342,120]
[321228357,1711996242443,-1953.25,0.00055342,120]
[321228358,1711996242452,-2796.47,0.00055342,120]
[321228359,1711996242461,-500.0,0.00055342,120]
[321228360,1711996242471,-500.0,0.00055342,120]
[321228361,1711996242480,-2070.72,0.00055342,120]
[321228362,1711996242490,-500.0,0.00055342,120]
[321228363,1711996242501,-500.0,0.00055342,2]
[321228364,1711996242511,-500.0,0.00055342,120]
[321228365,1711996242521,-151.0,0.00055342,120]
[321228366,1711996242531,-671.87,0.00055342,120]
[321228367,1711996242541,-500.0,0.00055342,120]
[321228368,1711996242550,-500.0,0.00055342,120]
[321228369,1711996242561,-1118.37,0.00055342,120]
[321228370,1711996242571,-793.46,0.00055342,120]
[321228371,1711996242580,-1000.0,0.00055342,7]
[321228372,1711996242590,-720.85,0.00055342,120]
[321228373,1711996242604,-205.20956012,0.00055342,120]
[321228374,1711996242614,-715.87,0.00055342,120]
[321228375,1711996242623,-500.0,0.00055342,120]
[321228376,1711996242633,-600.02722347,0.00055342,120]
[321228377,1711996242643,-2798.65452681,0.00055516,2]
[321228378,1711996242653,-151.0,0.00055516,120]
[321228379,1711996242726,-151.0,0.00055516,10]
[321228380,1711996242736,-372.44761954,0.00055613,4]
[321228381,1711996242745,-326.95329628,0.00055613,4]
[321228382,1711996242754,-333.44966746,0.00055613,4]
[321228383,1711996242764,-500.0,0.00055616,120]
[321228384,1711996242773,-555.61399369,0.00055616,120]
[321228386,1711996242783,-500.0,0.00055616,120]
[321228388,1711996242792,-500.0,0.00055616,120]
[321228389,1711996242801,-679.11,0.00055616,120]
[321228390,1711996242811,-500.0,0.00055616,120]
[321228391,1711996242820,-500.0,0.00055616,120]
[321228392,1711996242829,-151.0,0.00055616,120]
[321228393,1711996242838,-352.29249029,0.00055616,120]
[321228395,1711996242849,-573.66,0.00055616,120]
[321228397,1711996242859,-500.0,0.00055616,120]
[321228398,1711996242868,-155.352931,0.00055616,120]
[321228399,1711996242877,-155.352931,0.00055616,120]
[321228400,1711996242887,-225.56517564,0.00055616,120]
[321228401,1711996242896,-151.0,0.00055616,120]
[321228402,1711996242905,-500.0,0.00055616,120]
[321228404,1711996242914,-500.0,0.00055616,120]
[321228405,1711996242923,-612.64,0.00055616,120]
[321228406,1711996242932,-500.0,0.00055616,120]